[Event "7th Iberoamerican-ch 2019"]
[Site "Linares"]
[Date "2019.08.10"]
[Round "1.39"]
[White "Mieles Palau, Daniel"]
[Black "Diaz Mino, Daniel"]
[Result "1-0"]
[ECO "B23"]
[WhiteElo "2359"]
[BlackElo "1835"]
[Annotator "NA"]
[PlyCount "77"]
[EventDate "2019.08.10"]
[EventType "swiss"]
[EventCountry "ESP"]
[SourceTitle "playchess.com"]
[Source "ChessBase"]
[SourceQuality "1"]
[TimeControl "5400+30"]

1. e4 {[%emt 0:00:00]} c5 {[%emt 0:00:00]} 2. Nc3 {[%emt 0:00:01]} d6 {[%emt 0:00:00]} 3. Nf3 {[%emt 0:02:02]} Nf6 {[%emt 0:00:43]} 4. e5 {[%emt 0:00:08]} dxe5 {[%emt 0:06:15]} 5. Nxe5 {[%emt 0:00:08]} g6 {[%emt 0:04:40]} 6. Bc4 {[%emt 0:12:45]} e6 {[%emt 0:03:49]} 7. d3 {[%emt 0:01:08]} Bg7 {[%emt 0:03:42]} 8. Bg5 {[%emt 0:09:17]} O-O {[%emt 0:05:44]} 9. Qf3 {[%emt 0:18:44]} h6 {[%emt 0:12:31]} 10. Bh4 {[%emt 0:00:11]} Nbd7 {[%emt 0:06:04]} 11. Nxd7 {[%emt 0:10:53]} Bxd7 {[%emt 0:00:12]} 12. Qxb7 {[%emt 0:00:02]} Rb8 {[%emt 0:01:14]} 13. Qxa7 {[%emt 0:00:05]} Rxb2 {[%emt 0:06:27]} 14. O-O {[%emt 0:00:05]} g5 {[%emt 0:03:57]} 15. Bg3 {[%emt 0:00:47]} Nh5 {[%emt 0:01:31]} 16. Ne4 {[%emt 0:10:44]} Nxg3 {[%emt 0:04:47]} 17. hxg3 {[%emt 0:02:27]} Bc6 {[%emt 0:19:37]} 18. Rad1 {[%emt 0:13:13]} Rxc2 {[%emt 0:03:03]} 19. Bb3 {[%emt 0:01:55]} Rb2 {[%emt 0:01:21]} 20. Qxc5 {[%emt 0:00:09]} Qa8 {[%emt 0:00:50]} 21. Rfe1 {[%emt 0:04:28]} Rd8 {[%emt 0:01:15]} 22. Rc1 {[%emt 0:03:30]} Bb7 {[%emt 0:04:08]} 23. Qe7 {[%emt 0:00:54]} Bxe4 {[%emt 0:05:18]} 24. Rxe4 {[%emt 0:00:18]} Re8 {[%emt 0:01:29]} 25. Qc7 {[%emt 0:02:14]} Rd2 {[%emt 0:00:28]} 26. Re3 {[%emt 0:00:50]} Qa3 {[%emt 0:03:22]} 27. Rf3 {[%emt 0:00:24]} Rf8 {[%emt 0:00:20]} 28. Rc4 {[%emt 0:04:03]} Qb2 {[%emt 0:00:38]} 29. Re4 {[%emt 0:00:42]} Qb1+ {[%emt 0:00:29]} 30. Kh2 {[%emt 0:00:05]} Rxd3 {[%emt 0:00:33]} 31. Bc2 {[%emt 0:00:13]} Qxa2 {[%emt 0:00:30]} 32. Rxd3 {[%emt 0:00:42]} Qa8 {[%emt 0:00:30]} 33. Rf3 {[%emt 0:00:13]} Qe8 {[%emt 0:00:28]} 34. Qd6 {[%emt 0:01:06]} Qc8 {[%emt 0:00:20]} 35. Bb3 {[%emt 0:00:50]} Rd8 {[%emt 0:00:32]} 36. Qb6 {[%emt 0:00:29]} Re8 {[%emt 0:00:40]} 37. Rc4 {[%emt 0:00:18]} Qa8 {[%emt 0:00:26]} 38. Rc7 {[%emt 0:00:08]} Rf8 {[%emt 0:00:27]} 39. Rfxf7 {[%emt 0:00:14]} 1-0

[Event "7th Iberoamerican-ch 2019"]
[Site "Linares"]
[Date "2019.08.10"]
[Round "1.40"]
[White "Montesinos Diaz, Luis"]
[Black "Cruz Ravina, Francisco Javier"]
[Result "0-1"]
[ECO "A48"]
[WhiteElo "1808"]
[BlackElo "2363"]
[Annotator "NA"]
[PlyCount "112"]
[EventDate "2019.08.10"]
[EventType "swiss"]
[EventCountry "ESP"]
[SourceTitle "playchess.com"]
[Source "ChessBase"]
[SourceQuality "1"]
[TimeControl "5400+30"]

1. d4 {[%emt 0:00:00]} Nf6 {[%emt 0:00:00]} 2. Nf3 {[%emt 0:00:00]} g6 {[%emt 0:01:27]} 3. Bg5 {[%emt 0:01:29]} Bg7 {[%emt 0:01:09]} 4. Nbd2 {[%emt 0:01:28]} d6 {[%emt 0:02:23]} 5. e4 {[%emt 0:01:49]} O-O {[%emt 0:01:54]} 6. c3 {[%emt 0:01:27]} Nc6 {[%emt 0:01:43]} 7. Bc4 {[%emt 0:03:39]} e5 {[%emt 0:03:57]} 8. dxe5 {[%emt 0:00:45]} Nxe5 {[%emt 0:02:26]} 9. Nxe5 {[%emt 0:02:43]} dxe5 {[%emt 0:00:07]} 10. O-O {[%emt 0:06:28]} Qe7 {[%emt 0:05:03]} 11. Qe2 {[%emt 0:07:05]} h6 {[%emt 0:02:00]} 12. Bh4 {[%emt 0:01:02]} Rd8 {[%emt 0:06:55]} 13. Rfd1 {[%emt 0:03:14]} Be6 {[%emt 0:03:46]} 14. Bb3 {[%emt 0:13:55]} c6 {[%emt 0:17:11]} 15. Nc4 {[%emt 0:05:00]} Qc5 {[%emt 0:09:51]} 16. Nd2 {[%emt 0:12:47]} Bg4 {[%emt 0:14:31]} 17. Nf3 {[%emt 0:01:21]} g5 {[%emt 0:01:25]} 18. Bg3 {[%emt 0:04:03]} Nh5 {[%emt 0:14:56]} 19. Rd3 {[%emt 0:00:06]} Nxg3 20. hxg3 {[%emt 0:00:04]} Rxd3 {[%emt 0:02:20]} 21. Qxd3 {[%emt 0:00:45]} Qe7 {[%emt 0:02:41]} 22. Rd1 {[%emt 0:00:36]} Bf6 23. Rd2 Qc7 {[%emt 0:03:11]} 24. Nh2 {[%emt 0:05:47]} Bh5 {[%emt 0:02:16]} 25. Qd6 {[%emt 0:01:00]} Qxd6 {[%emt 0:00:22]} 26. Rxd6 {[%emt 0:00:02]} Kg7 {[%emt 0:00:34]} 27. Rd7 {[%emt 0:01:03]} Rb8 {[%emt 0:00:15]} 28. f3 {[%emt 0:01:59]} Bd8 {[%emt 0:00:44]} 29. g4 {[%emt 0:02:00]} Bg6 {[%emt 0:00:22]} 30. Kf1 {[%emt 0:01:06]} Kf8 {[%emt 0:00:34]} 31. Ke2 {[%emt 0:00:47]} Ke8 {[%emt 0:00:19]} 32. Rd2 {[%emt 0:00:20]} Bb6 {[%emt 0:00:15]} 33. Nf1 {[%emt 0:00:17]} h5 {[%emt 0:00:59]} 34. gxh5 {[%emt 0:02:25]} Bxh5 {[%emt 0:00:06]} 35. Ng3 {[%emt 0:03:45]} Bg6 {[%emt 0:00:07]} 36. Bc2 {[%emt 0:02:17]} Ke7 {[%emt 0:01:01]} 37. Rd1 {[%emt 0:01:05]} Rh8 {[%emt 0:00:24]} 38. Rh1 {[%emt 0:00:06]} Rxh1 {[%emt 0:00:25]} 39. Nxh1 {[%emt 0:00:01]} f6 {[%emt 0:00:37]} 40. Ng3 {[%emt 0:00:10]} Bf7 {[%emt 0:00:20]} 41. Nf5+ {[%emt 0:00:14]} Kd7 {[%emt 0:00:07]} 42. Bb3 {[%emt 0:00:05]} Bxb3 {[%emt 0:00:43]} 43. axb3 {[%emt 0:00:30]} a5 {[%emt 0:00:16]} 44. Ne3 {[%emt 0:00:00]} Bxe3 45. Kxe3 {[%emt 0:04:25]} Kd6 {[%emt 0:01:48]} 46. Kd3 {[%emt 0:00:30]} Kc5 {[%emt 0:00:10]} 47. Kc2 {[%emt 0:00:30]} Kb5 {[%emt 0:00:30]} 48. Kd3 {[%emt 0:00:32]} c5 {[%emt 0:00:38]} 49. Kc2 {[%emt 0:02:15]} a4 {[%emt 0:00:19]} 50. bxa4+ {[%emt 0:01:01]} Kxa4 {[%emt 0:00:36]} 51. b3+ {[%emt 0:00:00]} Ka3 {[%emt 0:00:30]} 52. c4 {[%emt 0:00:29]} g4 {[%emt 0:00:50]} 53. fxg4 {[%emt 0:02:18]} Ka2 {[%emt 0:00:18]} 54. Kc3 {[%emt 0:00:04]} Kb1 {[%emt 0:00:45]} 55. b4 {[%emt 0:00:12]} Ka2 {[%emt 0:00:18]} 56. bxc5 {[%emt 0:00:32]} Ka3 {[%emt 0:00:07] Kd4} 0-1

[Event "7th Iberoamerican-ch 2019"]
[Site "Linares"]
[Date "2019.08.11"]
[Round "2.5"]
[White "Plazuelo Pascual, Juan"]
[Black "Lopez Martinez, Josep Manuel"]
[Result "1-0"]
[ECO "E10"]
[WhiteElo "2403"]
[BlackElo "2581"]
[Annotator "ChessBase"]
[PlyCount "171"]
[EventDate "2019.08.10"]
[EventType "swiss"]
[EventCountry "ESP"]
[SourceTitle "playchess.com"]
[Source "ChessBase"]
[SourceQuality "1"]
[TimeControl "5400+30"]

1. d4 {[%emt 0:00:00]} Nf6 {[%emt 0:00:18]} 2. c4 {[%emt 0:00:00]} e6 {[%emt 0:00:19]} 3. Nf3 {[%emt 0:00:03]} c5 {[%emt 0:00:40]} 4. d5 {[%emt 0:00:39]} d6 {[%emt 0:00:31]} 5. Nc3 {[%emt 0:00:41]} exd5 {[%emt 0:00:38]} 6. cxd5 {[%emt 0:00:13]} a6 {[%emt 0:00:37]} 7. e4 {[%emt 0:04:06]} Bg4 {[%emt 0:00:59]} 8. Be2 {[%emt 0:03:05]} Nbd7 {[%emt 0:04:28]} 9. Nd2 {[%emt 0:03:11]} Bxe2 {[%emt 0:03:36]} 10. Qxe2 {[%emt 0:00:09]} b5 {[%emt 0:04:57]} 11. a4 {[%emt 0:11:25]} b4 {[%emt 0:02:53]} 12. Nd1 {[%emt 0:00:37]} Be7 {[%emt 0:02:17]} 13. O-O {[%emt 0:05:31]} O-O {[%emt 0:00:47]} 14. Nc4 {[%emt 0:03:09]} Re8 {[%emt 0:03:33]} 15. Qd3 {[%emt 0:02:03]} Bf8 {[%emt 0:05:31]} 16. f3 {[%emt 0:01:33]} g6 {[%emt 0:00:26]} 17. Bg5 {[%emt 0:09:06]} Ne5 {[%emt 0:05:20]} 18. Nxe5 {[%emt 0:02:05]} Rxe5 {[%emt 0:00:14]} 19. f4 {[%emt 0:13:25]} Rxg5 {[%emt 0:01:56]} 20. fxg5 {[%emt 0:00:09]} Nd7 {[%emt 0:00:27]} 21. Qg3 {[%emt 0:00:52]} Qe7 {[%emt 0:01:05]} 22. Ne3 {[%emt 0:03:45]} Bg7 {[%emt 0:05:43]} 23. Rab1 {[%emt 0:10:13]} Qxe4 {[%emt 0:13:44]} 24. Ng4 {[%emt 0:01:07]} Ne5 {[%emt 0:03:13]} 25. Nf6+ {[%emt 0:02:27]} Bxf6 {[%emt 0:00:47]} 26. gxf6 {[%emt 0:00:04]} h6 {[%emt 0:06:15]} 27. Rbd1 {[%emt 0:01:23]} c4 {[%emt 0:04:35]} 28. Rd2 {[%emt 0:03:58]} Kh7 {[%emt 0:07:14]} 29. Re1 {[%emt 0:03:17]} Qf5 {[%emt 0:00:32]} 30. Rf1 {[%emt 0:00:13]} Qg5 {[%emt 0:00:51]} 31. Qxg5 {[%emt 0:02:11]} hxg5 {[%emt 0:00:07]} 32. Rd4 {[%emt 0:00:19]} a5 {[%emt 0:00:21]} 33. g4 {[%emt 0:03:43]} Rc8 {[%emt 0:00:51]} 34. Kg2 {[%emt 0:00:42]} c3 {[%emt 0:00:25]} 35. bxc3 {[%emt 0:00:54]} Rxc3 {[%emt 0:00:08]} 36. Rb1 {[%emt 0:05:25]} Ra3 {[%emt 0:07:16]} 37. Re4 {[%emt 0:00:07]} Rxa4 {[%emt 0:04:54]} 38. Rxe5 {[%emt 0:05:50]} dxe5 {[%emt 0:00:07]} 39. Kf3 {[%emt 0:00:01]} Kg8 {[%emt 0:02:25]} 40. Ke4 {[%emt 0:00:17]} b3+ {[%emt 0:02:47]} 41. Kxe5 {[%emt 0:00:32]} Rb4 {[%emt 0:00:12]} 42. d6 {[%emt 0:00:26]} Rb5+ {[%emt 0:00:08]} 43. Kd4 {[%emt 0:00:47]} Rb8 {[%emt 0:01:33]} 44. Kc5 {[%emt 0:00:47]} a4 {[%emt 0:00:45]} 45. d7 {[%emt 0:00:06]} Kh7 {[%emt 0:01:50]} 46. Kc6 {[%emt 0:00:24]} Ra8 {[%emt 0:01:25]} 47. Kc7 {[%emt 0:01:00]} a3 {[%emt 0:00:47]} 48. Rxb3 {[%emt 0:00:03]} a2 {[%emt 0:00:06]} 49. Rh3+ {[%emt 0:00:02]} Kg8 {[%emt 0:01:12]} 50. Ra3 {[%emt 0:00:04]} Rxa3 {[%emt 0:00:27]} 51. d8=Q+ {[%emt 0:00:05]} Kh7 {[%emt 0:00:06]} 52. Qf8 {[%emt 0:00:29]} Ra7+ {[%emt 0:00:04]} 53. Kb6 {[%emt 0:03:08]} Ra6+ {[%emt 0:00:09]} 54. Kb5 {[%emt 0:00:08]} Rxf6 {[%emt 0:00:07]} 55. Qa3 {[%emt 0:00:17]} Rf2 {[%emt 0:00:37]} 56. Qa7 {[%emt 0:00:37]} Rb2+ {[%emt 0:01:43]} 57. Kc4 {[%emt 0:00:03]} Kg8 {[%emt 0:00:56]} 58. h3 {[%emt 0:00:05]} Rc2+ {[%emt 0:00:33]} 59. Kd3 {[%emt 0:01:04]} Rh2 {[%emt 0:00:54]} 60. Ke4 {[%emt 0:00:12]} Rxh3 {[%emt 0:00:51]} 61. Qxa2 {[%emt 0:00:32]} Rg3 {[%emt 0:01:18]} 62. Ke5 {[%emt 0:01:23]} Kg7 {[%emt 0:00:52]} 63. Qe2 {[%emt 0:00:34]} Rb3 {[%emt 0:00:19]} 64. Kd6 {[%emt 0:00:09]} Rb6+ {[%emt 0:00:20]} 65. Kd5 {[%emt 0:00:13]} Re6 {[%emt 0:00:45]} 66. Qb2+ {[%emt 0:00:03]} Kh7 {[%emt 0:00:21]} 67. Qb8 {[%emt 0:00:22]} Kg7 {[%emt 0:00:16]} 68. Qc8 {[%emt 0:00:07]} Re2 {[%emt 0:00:36]} 69. Qc3+ {[%emt 0:00:08]} Kg8 {[%emt 0:00:20]} 70. Qc1 {[%emt 0:00:41]} Re8 {[%emt 0:00:38]} 71. Qxg5 {[%emt 0:00:24]} Re2 {[%emt 0:00:12]} 72. Qc1 {[%emt 0:00:20]} Re8 {[%emt 0:00:08]} 73. Qc3 {[%emt 0:00:45]} Re2 {[%emt 0:00:19]} 74. g5 {[%emt 0:00:37]} Re8 {[%emt 0:00:17]} 75. Kd6 {[%emt 0:00:32]} Re6+ {[%emt 0:00:10]} 76. Kd7 {[%emt 0:00:06]} Re4 {[%emt 0:00:56]} 77. Qb3 {[%emt 0:00:35]} Re2 {[%emt 0:00:33]} 78. Kd6 {[%emt 0:00:15]} Kg7 {[%emt 0:00:33]} 79. Qc4 {[%emt 0:00:20]} Re8 {[%emt 0:01:40]} 80. Kd7 {[%emt 0:00:03]} Ra8 {[%emt 0:00:41]} 81. Qd4+ {[%emt 0:00:04]} Kg8 {[%emt 0:00:04]} 82. Ke7 {[%emt 0:00:22]} Rc8 {[%emt 0:00:57]} 83. Qf4 {[%emt 0:01:35]} Rf8 {[%emt 0:00:31]} 84. Qf6 {[%emt 0:00:08]} Ra8 {[%emt 0:00:25]} 85. Qxf7+ {[%emt 0:00:14]} Kh8 {[%emt 0:00:01]} 86. Qf8+ {Kg8} 1-0

[Event "7th Iberoamerican-ch 2019"]
[Site "Linares"]
[Date "2019.08.11"]
[Round "2.6"]
[White "Lopez Mulet, Inigo"]
[Black "Albornoz Cabrera, Carlos Daniel"]
[Result "0-1"]
[ECO "E68"]
[WhiteElo "2378"]
[BlackElo "2566"]
[Annotator "ChessBase"]
[PlyCount "106"]
[EventDate "2019.08.10"]
[EventType "swiss"]
[EventCountry "ESP"]
[SourceTitle "playchess.com"]
[Source "ChessBase"]
[SourceQuality "1"]
[TimeControl "5400+30"]

1. d4 {[%emt 0:00:00]} Nf6 {[%emt 0:00:00]} 2. c4 {[%emt 0:00:00]} g6 {[%emt 0:00:00]} 3. g3 {[%emt 0:00:05]} Bg7 {[%emt 0:00:00]} 4. Bg2 {[%emt 0:00:04]} O-O {[%emt 0:00:00]} 5. Nc3 {[%emt 0:00:10]} d6 {[%emt 0:00:00]} 6. Nf3 {[%emt 0:00:10]} Nbd7 {[%emt 0:00:01]} 7. O-O {[%emt 0:00:29]} e5 {[%emt 0:00:05]} 8. e4 {[%emt 0:00:56]} exd4 {[%emt 0:00:07]} 9. Nxd4 {[%emt 0:00:06]} Re8 {[%emt 0:00:04]} 10. Re1 {[%emt 0:08:11]} a6 {[%emt 0:01:24]} 11. Bf4 {[%emt 0:09:41]} Rb8 {[%emt 0:06:35]} 12. a4 {[%emt 0:04:20]} Ne5 {[%emt 0:03:57]} 13. b3 {[%emt 0:01:51]} Nh5 {[%emt 0:02:05]} 14. Bc1 {[%emt 0:13:18]} Bg4 {[%emt 0:02:08]} 15. Qd2 {[%emt 0:03:41]} c5 {[%emt 0:01:28]} 16. Nc2 {[%emt 0:04:26]} Nf3+ {[%emt 0:10:19]} 17. Bxf3 {[%emt 0:00:08]} Bxf3 {[%emt 0:00:02]} 18. Qd3 {[%emt 0:05:41]} Bxc3 {[%emt 0:01:53]} 19. Qxc3 {[%emt 0:00:26]} Bxe4 {[%emt 0:05:12]} 20. Bb2 {[%emt 0:00:19]} f6 {[%emt 0:00:19]} 21. Ne3 {[%emt 0:03:14]} Qd7 {[%emt 0:06:16]} 22. g4 {[%emt 0:09:10]} Re5 {[%emt 0:04:53]} 23. Qd2 {[%emt 0:15:18]} Rg5 {[%emt 0:03:48]} 24. h3 {[%emt 0:00:35]} Nf4 {[%emt 0:01:13]} 25. f3 {[%emt 0:10:04]} Bxf3 {[%emt 0:07:30]} 26. Rf1 {[%emt 0:00:52]} Ne2+ {[%emt 0:36:34]} 27. Kh2 {[%emt 0:00:12]} Nd4 {[%emt 0:01:13]} 28. Bxd4 {[%emt 0:00:40]} cxd4 {[%emt 0:00:01]} 29. Qxd4 {[%emt 0:00:58]} Bc6 {[%emt 0:00:02]} 30. Rxf6 {[%emt 0:01:00]} Re8 {[%emt 0:02:10]} 31. Qf4 {[%emt 0:03:41]} Rge5 {[%emt 0:00:57]} 32. Rf1 {[%emt 0:00:06]} Qd8 {[%emt 0:01:35]} 33. Qh6 {[%emt 0:05:22]} R5e7 {[%emt 0:01:30]} 34. Nd5 {[%emt 0:00:57]} Bxd5 {[%emt 0:00:31]} 35. cxd5 {[%emt 0:00:00]} Re2+ {[%emt 0:00:00]} 36. Kh1 {[%emt 0:00:38]} Qe7 {[%emt 0:01:55]} 37. Rf7 {[%emt 0:00:47]} Qxf7 {[%emt 0:01:16]} 38. Rxf7 {[%emt 0:00:05]} Kxf7 {[%emt 0:00:05]} 39. Qxh7+ {[%emt 0:00:03]} Kf6 {[%emt 0:00:12]} 40. h4 {[%emt 0:01:09]} Ke5 {[%emt 0:01:36]} 41. Qf7 {[%emt 0:00:33]} Kd4 {[%emt 0:00:22]} 42. Qf4+ {[%emt 0:00:50]} Kd3 {[%emt 0:00:48]} 43. Kg1 {[%emt 0:00:38]} Re1+ {[%emt 0:00:27]} 44. Kg2 {[%emt 0:00:16]} R8e2+ {[%emt 0:00:06]} 45. Kg3 {[%emt 0:00:14]} Re3+ {[%emt 0:00:17]} 46. Kf2 {[%emt 0:00:47]} R1e2+ {[%emt 0:00:19]} 47. Kf1 {[%emt 0:00:13]} Re4 {[%emt 0:01:20]} 48. Qxd6 {[%emt 0:00:17]} Rxg4 {[%emt 0:00:17]} 49. Qb6 {[%emt 0:01:14]} Rf4+ {[%emt 0:00:47]} 50. Kg1 {[%emt 0:00:05]} Rg4+ {[%emt 0:00:03]} 51. Kf1 {[%emt 0:00:10]} Ree4 {[%emt 0:00:11]} 52. d6 {[%emt 0:00:51]} Ref4+ {[%emt 0:00:25]} 53. Ke1 {[%emt 0:00:03]} Rg2 {[%emt 0:00:16]} 0-1

[Event "7th Iberoamerican-ch 2019"]
[Site "Linares"]
[Date "2019.08.11"]
[Round "2.7"]
[White "Henriquez Villagra, Cristobal"]
[Black "Merario Alarcon, Andres"]
[Result "1-0"]
[ECO "C50"]
[WhiteElo "2560"]
[BlackElo "2400"]
[Annotator "ChessBase"]
[PlyCount "65"]
[EventDate "2019.08.10"]
[EventType "swiss"]
[EventCountry "ESP"]
[SourceTitle "playchess.com"]
[Source "ChessBase"]
[SourceQuality "1"]
[TimeControl "5400+30"]

1. e4 {[%emt 0:04:10]} e5 {[%emt 0:00:00]} 2. Nf3 {[%emt 0:00:09]} Nc6 {[%emt 0:00:00]} 3. Bc4 {[%emt 0:00:04]} Nf6 {[%emt 0:00:11]} 4. d3 {[%emt 0:00:04]} Bc5 {[%emt 0:00:17]} 5. O-O {[%emt 0:00:09]} d6 {[%emt 0:00:09]} 6. c3 {[%emt 0:00:24]} h6 {[%emt 0:00:32]} 7. Re1 {[%emt 0:03:59]} O-O {[%emt 0:00:18]} 8. Nbd2 {[%emt 0:00:37]} a5 {[%emt 0:00:18]} 9. Nf1 {[%emt 0:00:36]} a4 {[%emt 0:00:22]} 10. Ng3 {[%emt 0:12:11]} Bd7 {[%emt 0:00:35]} 11. d4 {[%emt 0:03:19]} Bb6 {[%emt 0:08:43]} 12. h3 {[%emt 0:05:46]} Re8 {[%emt 0:05:57]} 13. dxe5 {[%emt 0:14:08]} Nxe5 {[%emt 0:03:33]} 14. Nxe5 {[%emt 0:00:29]} Rxe5 {[%emt 0:06:00]} 15. Bf4 {[%emt 0:03:12]} Re8 {[%emt 0:00:29]} 16. Qd3 {[%emt 0:08:52]} Bc6 {[%emt 0:08:13]} 17. Rad1 {[%emt 0:03:31]} Ra5 {[%emt 0:20:46]} 18. a3 {[%emt 0:15:45]} Nd7 {[%emt 0:05:50]} 19. Nf5 {[%emt 0:02:59]} Qf6 {[%emt 0:02:07]} 20. Qg3 {[%emt 0:13:38]} Kh8 {[%emt 0:02:25]} 21. Bd3 {[%emt 0:00:50]} Nc5 {[%emt 0:09:04]} 22. Nd4 {[%emt 0:05:31]} Nxd3 {[%emt 0:04:40]} 23. Rxd3 {[%emt 0:00:02]} Rxe4 {[%emt 0:01:51]} 24. Rxe4 {[%emt 0:00:02]} Bxe4 {[%emt 0:00:02]} 25. Re3 {[%emt 0:00:35]} Bg6 {[%emt 0:02:13]} 26. Re8+ {[%emt 0:00:45]} Kh7 {[%emt 0:00:02]} 27. Be3 {[%emt 0:00:59]} c5 {[%emt 0:12:03]} 28. Nf3 {[%emt 0:00:07]} Bf5 {[%emt 0:01:38]} 29. Ng5+ {[%emt 0:00:43]} hxg5 {[%emt 0:01:40]} 30. Bxg5 {[%emt 0:00:02]} Qe5 {[%emt 0:02:02]} 31. Rxe5 {[%emt 0:00:05]} dxe5 {[%emt 0:00:02]} 32. Qh4+ {[%emt 0:00:10]} Kg8 {[%emt 0:01:49]} 33. Bd8 {[%emt 0:00:05]} 1-0

[Event "7th Iberoamerican-ch 2019"]
[Site "Linares"]
[Date "2019.08.11"]
[Round "2.8"]
[White "Valenzuela Gomez, Fernando"]
[Black "Cruz, Cristhian"]
[Result "0-1"]
[ECO "E21"]
[WhiteElo "2394"]
[BlackElo "2562"]
[Annotator "ChessBase"]
[PlyCount "114"]
[EventDate "2019.08.10"]
[EventType "swiss"]
[EventCountry "ESP"]
[SourceTitle "playchess.com"]
[Source "ChessBase"]
[SourceQuality "1"]
[TimeControl "5400+30"]

1. d4 {[%emt 0:00:00]} Nf6 {[%emt 0:00:00]} 2. c4 {[%emt 0:00:00]} e6 {[%emt 0:00:00]} 3. Nc3 {[%emt 0:00:00]} Bb4 {[%emt 0:00:17]} 4. Nf3 {[%emt 0:00:16]} b6 {[%emt 0:00:23]} 5. Bd2 {[%emt 0:00:08]} Bb7 {[%emt 0:00:18]} 6. e3 {[%emt 0:00:08]} O-O {[%emt 0:00:57]} 7. Bd3 {[%emt 0:00:13]} c5 {[%emt 0:01:55]} 8. O-O {[%emt 0:04:20]} d6 {[%emt 0:05:13]} 9. a3 {[%emt 0:03:03]} Bxc3 {[%emt 0:01:06]} 10. Bxc3 {[%emt 0:00:09]} Nbd7 {[%emt 0:00:39]} 11. b4 {[%emt 0:00:17]} Re8 {[%emt 0:01:26]} 12. Nd2 {[%emt 0:00:16]} Rc8 {[%emt 0:01:52]} 13. bxc5 {[%emt 0:07:45]} dxc5 {[%emt 0:02:33]} 14. Bb2 {[%emt 0:08:40]} Qc7 {[%emt 0:22:18]} 15. f4 {[%emt 0:05:14]} cxd4 {[%emt 0:05:16]} 16. exd4 {[%emt 0:00:30]} Rcd8 {[%emt 0:03:45]} 17. Qe2 {[%emt 0:02:09]} Nf8 {[%emt 0:08:54]} 18. Qf2 {[%emt 0:14:23]} Ng6 {[%emt 0:00:43]} 19. Rae1 {[%emt 0:02:52]} Ng4 {[%emt 0:09:03]} 20. Qg3 {[%emt 0:00:59]} Nh6 {[%emt 0:00:06]} 21. Nf3 {[%emt 0:10:23]} Qxf4 {[%emt 0:04:43]} 22. Bxg6 {[%emt 0:01:44]} Qxg3 {[%emt 0:00:50]} 23. Bxf7+ {[%emt 0:03:13]} Nxf7 {[%emt 0:00:16]} 24. hxg3 {[%emt 0:00:07]} Ba6 {[%emt 0:01:05]} 25. Rf2 {[%emt 0:08:20]} Bxc4 {[%emt 0:01:17]} 26. Ne5 {[%emt 0:03:14]} Nd6 {[%emt 0:02:47]} 27. Rc1 {[%emt 0:01:06]} Rc8 {[%emt 0:01:21]} 28. g4 {[%emt 0:01:05]} h6 {[%emt 0:09:19]} 29. Re1 {[%emt 0:05:23]} Bd5 {[%emt 0:00:58]} 30. Ree2 {[%emt 0:04:52]} Rc7 {[%emt 0:03:32]} 31. a4 {[%emt 0:02:09]} Rec8 {[%emt 0:01:41]} 32. a5 {[%emt 0:02:01]} Ne4 {[%emt 0:05:07]} 33. axb6 {[%emt 0:02:10]} axb6 {[%emt 0:00:09]} 34. Rf4 {[%emt 0:00:30]} Rc2 {[%emt 0:02:11]} 35. Rxc2 {[%emt 0:00:42]} Rxc2 {[%emt 0:00:02]} 36. Ba3 {[%emt 0:00:42]} Ng3 {[%emt 0:01:30]} 37. Rf8+ {[%emt 0:01:03]} Kh7 {[%emt 0:00:07]} 38. Rf2 {[%emt 0:00:33]} Ne2+ {[%emt 0:00:23]} 39. Kf1 {[%emt 0:01:24]} Nxd4 {[%emt 0:01:05]} 40. Rxc2 {[%emt 0:00:05]} Nxc2 {[%emt 0:00:03]} 41. Bc1 {[%emt 0:00:08]} b5 {[%emt 0:00:35]} 42. g3 {[%emt 0:00:07]} Nd4 {[%emt 0:01:05]} 43. Kf2 {[%emt 0:00:20]} Nc6 {[%emt 0:00:28]} 44. Nxc6 {[%emt 0:00:58]} Bxc6 {[%emt 0:00:02]} 45. Bb2 {[%emt 0:02:20]} g5 {[%emt 0:01:45]} 46. Ke3 {[%emt 0:00:38]} Kg6 {[%emt 0:00:38]} 47. Bc3 {[%emt 0:00:37]} Bd5 {[%emt 0:00:24]} 48. Be5 {[%emt 0:01:05]} b4 {[%emt 0:00:19]} 49. Bd6 {[%emt 0:00:29]} b3 {[%emt 0:00:15]} 50. Be5 {[%emt 0:00:03]} Bg2 {[%emt 0:01:49]} 51. Kd3 {[%emt 0:02:10]} Bh3 {[%emt 0:00:36]} 52. Kc3 {[%emt 0:00:22]} Bxg4 {[%emt 0:00:04]} 53. Kxb3 {[%emt 0:00:07]} Kf5 {[%emt 0:00:53]} 54. Bb8 {[%emt 0:00:42]} Ke4 {[%emt 0:00:28]} 55. Kc3 {[%emt 0:00:18]} h5 {[%emt 0:00:36]} 56. Kd2 {[%emt 0:00:12]} Kf3 {[%emt 0:00:16]} 57. Ke1 {[%emt 0:00:15]} Kg2 {[%emt 0:00:24]} 0-1